Workbook

Sheet Foglio1
A2: VELO CLUB MONSUMMANESE ASD
A3: G.P. CITTA' DI MONSUMMANO CAT ESORDIENTI 1° ANNO KM. 40,6
E5: media km/h
C6: Distanze | E6: 34 | F6: 40 | G6: 42 | I6: Inserire le medie ipotetiche | L6: inserire qui l'ora di partenza | N6: 14:30:00
A7: PROV | B7: Località | C7: km parz. | D7: km progr. | F7: Orario di Passaggio
A8: PT | B8: Partenza via Marconi | C8: 0 | D8: =C8 -> 0 | E8: =N6 -> 14:30:00 | F8: =N6 -> 14:30:00 | G8: =N6 -> 14:30:00 | I8: Inserire l'ora di partenza
A9: PT | B9: 1 passaggio | C9: 4.71 | D9: =D8+C9 -> 4.71 | E9: =(D9/E$6*3600/86400)+E$8 -> 14:38:18.706 | F9: =(D9/F$6*3600/86400)+F$8 -> 14:37:03.900 | G9: =(D9/G$6*3600/86400)+G$8 -> 14:36:43.714
A10: PT | B10: 2 passaggio TRAGUARDO VOLANTE | C10: 4.71 | D10: =D9+C10 -> 9.42 | E10: =(D10/E$6*3600/86400)+E$8 -> 14:46:37.412 | F10: =(D10/F$6*3600/86400)+F$8 -> 14:44:07.800 | G10: =(D10/G$6*3600/86400)+G$8 -> 14:43:27.429
A11: PT | B11: 3 passaggio | C11: 4.71 | D11: =D10+C11 -> 14.13 | E11: =(D11/E$6*3600/86400)+E$8 -> 14:54:56.118 | F11: =(D11/F$6*3600/86400)+F$8 -> 14:51:11.700 | G11: =(D11/G$6*3600/86400)+G$8 -> 14:50:11.143 | H11: Per aggiungere nuove righe in coda a quelle esistenti,
A12: PT | B12: via mazzini, via Vivaldi | C12: 2.2 | D12: =D11+C12 -> 16.33 | E12: =(D12/E$6*3600/86400)+E$8 -> 14:58:49.059 | F12: =(D12/F$6*3600/86400)+F$8 -> 14:54:29.700 | G12: =(D12/G$6*3600/86400)+G$8 -> 14:53:19.714 | H12: selezionare dalla barra dei menù di Excel,
A13: PT | B13: Via Rive, Via Rossini (Com. Cartigliano) strada Bianca | C13: 0.5 | D13: =D12+C13 -> 16.83 | E13: =(D13/E$6*3600/86400)+E$8 -> 14:59:42 | F13: =(D13/F$6*3600/86400)+F$8 -> 14:55:14.700 | G13: =(D13/G$6*3600/86400)+G$8 -> 14:54:02.571 | H13: "Strumenti, Protezione, Rimuovi Protezione Foglio".
A14: PT | B14: Via Milano | C14: 0.4 | D14: =D13+C14 -> 17.23 | E14: =(D14/E$6*3600/86400)+E$8 -> 15:00:24.353 | F14: =(D14/F$6*3600/86400)+F$8 -> 14:55:50.700 | G14: =(D14/G$6*3600/86400)+G$8 -> 14:54:36.857 | H14: selezionare poi l'ultima riga del tabulato, dalla colonna A
A15: PT | B15: Via Molino | C15: 0.4 | D15: =D14+C15 -> 17.63 | E15: =(D15/E$6*3600/86400)+E$8 -> 15:01:06.706 | F15: =(D15/F$6*3600/86400)+F$8 -> 14:56:26.700 | G15: =(D15/G$6*3600/86400)+G$8 -> 14:55:11.143 | H15: fino alla colonna G, poi con il puntatore del Mause
A16: PT | B16: ViaTorino inizio Strada Bianca | C16: 0.2 | D16: =D15+C16 -> 17.83 | E16: =(D16/E$6*3600/86400)+E$8 -> 15:01:27.882 | F16: =(D16/F$6*3600/86400)+F$8 -> 14:56:44.700 | G16: =(D16/G$6*3600/86400)+G$8 -> 14:55:28.286 | H16: posizionarsi sul quadrattino in basso a destra della riga
A17: PT | B17: Via Copernico ATTENZIONE 2 DOSSI (Tezze) | C17: 0.6 | D17: =D16+C17 -> 18.43 | E17: =(D17/E$6*3600/86400)+E$8 -> 15:02:31.412 | F17: =(D17/F$6*3600/86400)+F$8 -> 14:57:38.700 | G17: =(D17/G$6*3600/86400)+G$8 -> 14:56:19.714 | H17: selezionata e trascinare la selezione secondo le necessità.
A18: PT | B18: SP 59 Via Bassano | C18: 0.4 | D18: =D17+C18 -> 18.83 | E18: =(D18/E$6*3600/86400)+E$8 -> 15:03:13.765 | F18: =(D18/F$6*3600/86400)+F$8 -> 14:58:14.700 | G18: =(D18/G$6*3600/86400)+G$8 -> 14:56:54 | H18: E' opportuno al termine della modifica, proteggere il foglio
A19: PT | B19: Via Lazzaretto inizio strada bianca | C19: 0.8 | D19: =D18+C19 -> 19.63 | E19: =(D19/E$6*3600/86400)+E$8 -> 15:04:38.471 | F19: =(D19/F$6*3600/86400)+F$8 -> 14:59:26.700 | G19: =(D19/G$6*3600/86400)+G$8 -> 14:58:02.571 | H19: per evitare la cancellazione delle formule
A20: PT | B20: Località Scalchi fine strada Bianca ATT. 1 DOSSO (Cartigliano) | C20: 0.4 | D20: =D19+C20 -> 20.03 | E20: =(D20/E$6*3600/86400)+E$8 -> 15:05:20.824 | F20: =(D20/F$6*3600/86400)+F$8 -> 15:00:02.700 | G20: =(D20/G$6*3600/86400)+G$8 -> 14:58:36.857
A21: PT | B21: Via Cavazzoni semaforo | C21: 2.4 | D21: =D20+C21 -> 22.43 | E21: =(D21/E$6*3600/86400)+E$8 -> 15:09:34.941 | F21: =(D21/F$6*3600/86400)+F$8 -> 15:03:38.700 | G21: =(D21/G$6*3600/86400)+G$8 -> 15:02:02.571
A22: PT | B22: 4 Passaggio sotto l'arrivo sp 59 TRAGUARDO VOLANTE | C22: 1.2 | D22: =D21+C22 -> 23.63 | E22: =(D22/E$6*3600/86400)+E$8 -> 15:11:42 | F22: =(D22/F$6*3600/86400)+F$8 -> 15:05:26.700 | G22: =(D22/G$6*3600/86400)+G$8 -> 15:03:45.429
A23: PT | B23: via mazzini, via Vivaldi | C23: 2.2 | D23: =D22+C23 -> 25.83 | E23: =(D23/E$6*3600/86400)+E$8 -> 15:15:34.941 | F23: =(D23/F$6*3600/86400)+F$8 -> 15:08:44.700 | G23: =(D23/G$6*3600/86400)+G$8 -> 15:06:54
A24: PT | B24: Via Rive, Via Rossini (Com. Cartigliano) strada Bianca | C24: 0.5 | D24: =D23+C24 -> 26.33 | E24: =(D24/E$6*3600/86400)+E$8 -> 15:16:27.882 | F24: =(D24/F$6*3600/86400)+F$8 -> 15:09:29.700 | G24: =(D24/G$6*3600/86400)+G$8 -> 15:07:36.857
B25: Via Milano | C25: 0.4 | D25: =D24+C25 -> 26.73 | E25: =(D25/E$6*3600/86400)+E$8 -> 15:17:10.235 | F25: =(D25/F$6*3600/86400)+F$8 -> 15:10:05.700 | G25: =(D25/G$6*3600/86400)+G$8 -> 15:08:11.143
B26: Via Molino | C26: 0.4 | D26: =D25+C26 -> 27.13 | E26: =(D26/E$6*3600/86400)+E$8 -> 15:17:52.588 | F26: =(D26/F$6*3600/86400)+F$8 -> 15:10:41.700 | G26: =(D26/G$6*3600/86400)+G$8 -> 15:08:45.429
B27: ViaTorino inizio Strada Bianca | C27: 0.2 | D27: =D26+C27 -> 27.33 | E27: =(D27/E$6*3600/86400)+E$8 -> 15:18:13.765 | F27: =(D27/F$6*3600/86400)+F$8 -> 15:10:59.700 | G27: =(D27/G$6*3600/86400)+G$8 -> 15:09:02.571
B28: Via Copernico ATTENZIONE 2 DOSSI (Tezze) | C28: 0.6 | D28: =D27+C28 -> 27.93 | E28: =(D28/E$6*3600/86400)+E$8 -> 15:19:17.294 | F28: =(D28/F$6*3600/86400)+F$8 -> 15:11:53.700 | G28: =(D28/G$6*3600/86400)+G$8 -> 15:09:54
B29: SP 59 Via Bassano | C29: 0.4 | D29: =D28+C29 -> 28.33 | E29: =(D29/E$6*3600/86400)+E$8 -> 15:19:59.647 | F29: =(D29/F$6*3600/86400)+F$8 -> 15:12:29.700 | G29: =(D29/G$6*3600/86400)+G$8 -> 15:10:28.286
B30: Via Lazzaretto inizio strada bianca | C30: 0.8 | D30: =D29+C30 -> 29.13 | E30: =(D30/E$6*3600/86400)+E$8 -> 15:21:24.353 | F30: =(D30/F$6*3600/86400)+F$8 -> 15:13:41.700 | G30: =(D30/G$6*3600/86400)+G$8 -> 15:11:36.857
B31: Località Scalchi fine strada Bianca ATT. 1 DOSSO | C31: 0.4 | D31: =D30+C31 -> 29.53 | E31: =(D31/E$6*3600/86400)+E$8 -> 15:22:06.706 | F31: =(D31/F$6*3600/86400)+F$8 -> 15:14:17.700 | G31: =(D31/G$6*3600/86400)+G$8 -> 15:12:11.143
B32: Via Cavazzoni semaforo | C32: 2.4 | D32: =D31+C32 -> 31.93 | E32: =(D32/E$6*3600/86400)+E$8 -> 15:26:20.824 | F32: =(D32/F$6*3600/86400)+F$8 -> 15:17:53.700 | G32: =(D32/G$6*3600/86400)+G$8 -> 15:15:36.857
B33: 5 Passaggio sotto l'arrivo sp 59 4° Passaggio | C33: 1.2 | D33: =D32+C33 -> 33.13 | E33: =(D33/E$6*3600/86400)+E$8 -> 15:28:27.882 | F33: =(D33/F$6*3600/86400)+F$8 -> 15:19:41.700 | G33: =(D33/G$6*3600/86400)+G$8 -> 15:17:19.714
B34: via mazzini, via Vivaldi | C34: 2.2 | D34: =D33+C34 -> 35.33 | E34: =(D34/E$6*3600/86400)+E$8 -> 15:32:20.824 | F34: =(D34/F$6*3600/86400)+F$8 -> 15:22:59.700 | G34: =(D34/G$6*3600/86400)+G$8 -> 15:20:28.286
B35: Via Rive, Via Rossini (Com. Cartigliano) strada Bianca | C35: 0.5 | D35: =D34+C35 -> 35.83 | E35: =(D35/E$6*3600/86400)+E$8 -> 15:33:13.765 | F35: =(D35/F$6*3600/86400)+F$8 -> 15:23:44.700 | G35: =(D35/G$6*3600/86400)+G$8 -> 15:21:11.143
B36: Via Milano | C36: 0.4 | D36: =D35+C36 -> 36.23 | E36: =(D36/E$6*3600/86400)+E$8 -> 15:33:56.118 | F36: =(D36/F$6*3600/86400)+F$8 -> 15:24:20.700 | G36: =(D36/G$6*3600/86400)+G$8 -> 15:21:45.429
B37: Via Molino | C37: 0.4 | D37: =D36+C37 -> 36.63 | E37: =(D37/E$6*3600/86400)+E$8 -> 15:34:38.471 | F37: =(D37/F$6*3600/86400)+F$8 -> 15:24:56.700 | G37: =(D37/G$6*3600/86400)+G$8 -> 15:22:19.714
B38: ViaTorino inizio Strada Bianca | C38: 0.2 | D38: =D37+C38 -> 36.83 | E38: =(D38/E$6*3600/86400)+E$8 -> 15:34:59.647 | F38: =(D38/F$6*3600/86400)+F$8 -> 15:25:14.700 | G38: =(D38/G$6*3600/86400)+G$8 -> 15:22:36.857
B39: Via Copernico ATTENZIONE 2 DOSSI | C39: 0.6 | D39: =D38+C39 -> 37.43 | E39: =(D39/E$6*3600/86400)+E$8 -> 15:36:03.176 | F39: =(D39/F$6*3600/86400)+F$8 -> 15:26:08.700 | G39: =(D39/G$6*3600/86400)+G$8 -> 15:23:28.286
B40: SP 59 Via Bassano | C40: 0.4 | D40: =D39+C40 -> 37.83 | E40: =(D40/E$6*3600/86400)+E$8 -> 15:36:45.529 | F40: =(D40/F$6*3600/86400)+F$8 -> 15:26:44.700 | G40: =(D40/G$6*3600/86400)+G$8 -> 15:24:02.571
B41: Via Lazzaretto inizio strada bianca | C41: 0.8 | D41: =D40+C41 -> 38.63 | E41: =(D41/E$6*3600/86400)+E$8 -> 15:38:10.235 | F41: =(D41/F$6*3600/86400)+F$8 -> 15:27:56.700 | G41: =(D41/G$6*3600/86400)+G$8 -> 15:25:11.143
B42: Località Scalchi fine strada Bianca ATT. 1 DOSSO | C42: 0.4 | D42: =D41+C42 -> 39.03 | E42: =(D42/E$6*3600/86400)+E$8 -> 15:38:52.588 | F42: =(D42/F$6*3600/86400)+F$8 -> 15:28:32.700 | G42: =(D42/G$6*3600/86400)+G$8 -> 15:25:45.429
B43: Via Cavazzoni semaforo | C43: 2.4 | D43: =D42+C43 -> 41.43 | E43: =(D43/E$6*3600/86400)+E$8 -> 15:43:06.706 | F43: =(D43/F$6*3600/86400)+F$8 -> 15:32:08.700 | G43: =(D43/G$6*3600/86400)+G$8 -> 15:29:11.143
B44: 6 Passaggio sotto l'arrivo sp 59 TRAGUARDO VOLANTE | C44: 1.2 | D44: =D43+C44 -> 42.63 | E44: =(D44/E$6*3600/86400)+E$8 -> 15:45:13.765 | F44: =(D44/F$6*3600/86400)+F$8 -> 15:33:56.700 | G44: =(D44/G$6*3600/86400)+G$8 -> 15:30:54
B45: località Santa Croce Bigolina com. Cittadella sp 24 | C45: 3.224 | D45: =D44+C45 -> 45.854 | E45: =(D45/E$6*3600/86400)+E$8 -> 15:50:55.129 | F45: =(D45/F$6*3600/86400)+F$8 -> 15:38:46.860 | G45: =(D45/G$6*3600/86400)+G$8 -> 15:35:30.343
B46: Via Casoni Basse (Fontaniva) inizio strada bianca (Cittadella) | C46: 3.022 | D46: =D45+C46 -> 48.876 | E46: =(D46/E$6*3600/86400)+E$8 -> 15:56:15.106 | F46: =(D46/F$6*3600/86400)+F$8 -> 15:43:18.840 | G46: =(D46/G$6*3600/86400)+G$8 -> 15:39:49.371
B47: Santa Croce Bigolina fine strada bianca | C47: 1.916 | D47: =D46+C47 -> 50.792 | E47: =(D47/E$6*3600/86400)+E$8 -> 15:59:37.976 | F47: =(D47/F$6*3600/86400)+F$8 -> 15:46:11.280 | G47: =(D47/G$6*3600/86400)+G$8 -> 15:42:33.600
B48: 7 passaggio sull'arrivo direzione nord | C48: 2.946 | D48: =D47+C48 -> 53.738 | E48: =(D48/E$6*3600/86400)+E$8 -> 16:04:49.906 | F48: =(D48/F$6*3600/86400)+F$8 -> 15:50:36.420 | G48: =(D48/G$6*3600/86400)+G$8 -> 15:46:46.114
B49: Svolta a sx su via concordia | C49: 0.206 | D49: =D48+C49 -> 53.944 | E49: =(D49/E$6*3600/86400)+E$8 -> 16:05:11.718 | F49: =(D49/F$6*3600/86400)+F$8 -> 15:50:54.960 | G49: =(D49/G$6*3600/86400)+G$8 -> 15:47:03.771
B50: Via Lazzaretto inizio strada bianca | C50: 2.988 | D50: =D49+C50 -> 56.932 | E50: =(D50/E$6*3600/86400)+E$8 -> 16:10:28.094 | F50: =(D50/F$6*3600/86400)+F$8 -> 15:55:23.880 | G50: =(D50/G$6*3600/86400)+G$8 -> 15:51:19.886
B51: Località Scalchi fine strada Bianca | C51: 1.023 | D51: =D50+C51 -> 57.955 | E51: =(D51/E$6*3600/86400)+E$8 -> 16:12:16.412 | F51: =(D51/F$6*3600/86400)+F$8 -> 15:56:55.950 | G51: =(D51/G$6*3600/86400)+G$8 -> 15:52:47.571
B52: Via Cavazzoni semaforo | C52: 2.4 | D52: =D51+C52 -> 60.355 | E52: =(D52/E$6*3600/86400)+E$8 -> 16:16:30.529 | F52: =(D52/F$6*3600/86400)+F$8 -> 16:00:31.950 | G52: =(D52/G$6*3600/86400)+G$8 -> 15:56:13.286
B53: Arrivo Via della Repubblica | C53: 1.118 | D53: =D52+C53 -> 61.473 | E53: =(D53/E$6*3600/86400)+E$8 -> 16:18:28.906 | F53: =(D53/F$6*3600/86400)+F$8 -> 16:02:12.570 | G53: =(D53/G$6*3600/86400)+G$8 -> 15:57:49.114

Sheet Foglio2

Sheet Foglio3
